{"text_format":"3","workbook":"xlsx","n_sheets":5,"sheets":["  Q U I Z  ","Consignes","Version papier","Données","Galerie"],"not_rendered":{"images":60,"macros":1,"external_links":2,"defined_names":10},"read":"whole","date_system":"1900"}

{"sheet":"  Q U I Z  ","index":0,"n_rows":62,"n_cols":21,"rows_kept":62,"merged":[[1,8,7,9],[2,1,3,1],[2,3,4,7],[2,10,3,10],[5,1,6,1],[5,10,6,10],[6,4,7,7],[7,2,11,3],[8,1,9,1],[8,8,8,9],[8,10,9,10],[10,5,11,8],[11,1,12,1],[11,10,12,10],[12,3,15,3],[14,1,15,1],[14,10,15,10],[15,5,16,8],[16,2,19,3],[18,1,19,1],[18,10,19,10],[19,5,20,8],[20,3,23,4],[21,1,22,1],[21,10,22,10],[24,1,25,1],[24,2,24,3],[24,10,25,10],[25,5,27,7],[26,3,27,3],[27,1,29,1],[27,10,29,10]]}
[{"$nulls":17},0,{"$f":"IF(R1<$Q$15+1,VLOOKUP(R1,Données!G4:H20,2),0)","v":0},{"$f":"5","v":5}]
[{"$nulls":16},"Comp. questions",1,{"$f":"IF(R2<$Q$15+1,VLOOKUP(R2,Données!G5:H21,2),0)","v":1},{"$f":"5","v":5},{"$f":"IF(T2=S2,1,0)","v":0}]
[null,"S",null,{"$f":"VLOOKUP(C5,Données!A4:F60,2)","v":"Cliquer sur ma tête pour obtenir une question d'introduction au droit"},{"$nulls":6},"S",{"$nulls":5},0,2,{"$f":"IF(R3<$Q$15+1,VLOOKUP(R3,Données!G6:H22,2),0)","v":4},{"$f":"5","v":5},{"$f":"IF(T3=S3,1,0)","v":0}]
[{"$nulls":17},3,{"$f":"IF(R4<$Q$15+1,VLOOKUP(R4,Données!G7:H23,2),0)","v":3},{"$f":"5","v":5},0]
[null,null,0,{"$nulls":13},"Comp. réponses",4,{"$f":"IF(R5<$Q$15+1,VLOOKUP(R5,Données!G8:H24,2),0)","v":2},{"$f":"5","v":5},0]
[null,"U",{"$nulls":8},"U",{"$nulls":5},0,5,{"$f":"IF(R6<$Q$15+1,VLOOKUP(R6,Données!G9:H25,2),0)","v":1},{"$f":"5","v":5},0]
[{"$nulls":4},{"$f":"VLOOKUP($C$5,Données!$A$4:$F$60,3)","v":"Salut, mon nom est Annie"},{"$nulls":12},6,{"$f":"IF(R7<$Q$15+1,VLOOKUP(R7,Données!G10:H26,2),0)","v":3},{"$f":"5","v":5},0]
[{"$nulls":16},"Réponse choisie",7,{"$f":"IF(R8<$Q$15+1,VLOOKUP(R8,Données!G11:H27,2),0)","v":4},{"$f":"5","v":5},0]
[null,"P",{"$nulls":6},"           Cliquez sur les visages !     ",null,"P",{"$nulls":5},0,8,{"$f":"IF(R9<$Q$15+1,VLOOKUP(R9,Données!G12:H28,2),0)","v":4},{"$f":"5","v":5},0]
[{"$nulls":17},9,{"$f":"IF(R10<$Q$15+1,VLOOKUP(R10,Données!G13:H29,2),0)","v":1},{"$f":"5","v":5},0]
[{"$nulls":5},{"$f":"VLOOKUP($C$5,Données!$A$4:$F$60,4)","v":" Moi, je m'appelle Béa"},{"$nulls":10},"Nb rép. justes",10,{"$f":"IF(R11<$Q$15+1,VLOOKUP(R11,Données!G14:H30,2),0)","v":2},{"$f":"5","v":5},0]
[null,"E",{"$nulls":8},"E",{"$nulls":5},{"$f":"SUM(U1:U62)","v":0},11,{"$f":"IF(R12<$Q$15+1,VLOOKUP(R12,Données!G15:H31,2),0)","v":3},{"$f":"5","v":5},0]
[{"$nulls":17},12,{"$f":"IF(R13<$Q$15+1,VLOOKUP(R13,Données!G16:H32,2),0)","v":4},{"$f":"5","v":5},0]
[{"$nulls":16},"Nb de questions",13,{"$f":"IF(R14<$Q$15+1,VLOOKUP(R14,Données!G17:H33,2),0)","v":3},{"$f":"5","v":5},0]
[null,"R",{"$nulls":8},"R",{"$nulls":5},{"$f":"Données!A3","v":25},14,{"$f":"IF(R15<$Q$15+1,VLOOKUP(R15,Données!G18:H34,2),0)","v":2},{"$f":"5","v":5},0]
[{"$nulls":5},{"$f":"VLOOKUP($C$5,Données!$A$4:$F$60,5)","v":"... et moi Chris"},{"$nulls":11},15,{"$f":"IF(R16<$Q$15+1,VLOOKUP(R16,Données!G19:H35,2),0)","v":1},{"$f":"5","v":5},0]
[{"$nulls":16},"Q'une réponse",16,{"$f":"IF(R17<$Q$15+1,VLOOKUP(R17,Données!G20:H36,2),0)","v":4},{"$f":"5","v":5},0]
[{"$nulls":16},false,17,{"$f":"IF(R18<$Q$15+1,VLOOKUP(R18,Données!G21:H37,2),0)","v":3},{"$f":"5","v":5},0]
[null,"Q",{"$nulls":8},"Q",{"$nulls":5},{"$f":"IF(Q18=TRUE,1,0)","v":0},18,{"$f":"IF(R19<$Q$15+1,VLOOKUP(R19,Données!G22:H38,2),0)","v":2},{"$f":"5","v":5},0]
[{"$nulls":5},{"$f":"VLOOKUP($C$5,Données!$A$4:$F$60,6)","v":"Hello, je suis Dan"},{"$nulls":11},19,{"$f":"IF(R20<$Q$15+1,VLOOKUP(R20,Données!G23:H39,2),0)","v":1},{"$f":"5","v":5},0]
[{"$nulls":15},"R =","No question",20,{"$f":"IF(R21<$Q$15+1,VLOOKUP(R21,Données!G24:H40,2),0)","v":4},{"$f":"5","v":5},0]
[null,"U",{"$nulls":8},"U",{"$nulls":4},"S =","Rép. Juste",21,{"$f":"IF(R22<$Q$15+1,VLOOKUP(R22,Données!G25:H41,2),0)","v":2},{"$f":"5","v":5},0]
[{"$nulls":15},"T =","Rép. Donnée",22,{"$f":"IF(R23<$Q$15+1,VLOOKUP(R23,Données!G26:H42,2),0)","v":3},{"$f":"5","v":5},0]
[{"$nulls":15},"U =","0 faux - 1 juste",23,{"$f":"IF(R24<$Q$15+1,VLOOKUP(R24,Données!G27:H43,2),0)","v":1},{"$f":"5","v":5},0]
[null,"I",{"$f":"IF(Q9=0,\"\",\"Proposition de \" & VLOOKUP(Q9,Consignes!C20:E23,2))","v":""},{"$nulls":7},"I",{"$nulls":6},24,{"$f":"IF(R25<$Q$15+1,VLOOKUP(R25,Données!G28:H44,2),0)","v":4},{"$f":"5","v":5},0]
[{"$nulls":5},{"$f":"IF(Q9=0,\"\",VLOOKUP(C5,Données!G4:L60,Q9+2))","v":""},{"$nulls":11},25,{"$f":"IF(R26<$Q$15+1,VLOOKUP(R26,Données!G29:H45,2),0)","v":2},{"$f":"5","v":5},0]
[{"$nulls":3},{"$f":"IF(Q9=0,\"\",IF(Q9=VLOOKUP(C5,Données!G2:L60,2),\"JUSTE\",\"FAUX\"))","v":""},{"$nulls":13},26,{"$f":"IF(R27<$Q$15+1,VLOOKUP(R27,Données!G30:H46,2),0)","v":0},{"$f":"5","v":5},0]
[null,"Z",{"$nulls":6},"Justes :",{"$f":"Q12&\" / \"&Données!A3","v":"0 / 25"},"Z",{"$nulls":6},27,{"$f":"IF(R28<$Q$15+1,VLOOKUP(R28,Données!G31:H47,2),0)","v":0},{"$f":"5","v":5},0]
[{"$nulls":19},{"$f":"5","v":5}]
[{"$nulls":8},"Questions posées :",{"$f":"IF(C5=Q123+1,Q3-1,Q3)","v":0},{"$nulls":7},28,{"$f":"IF(R30<$Q$15+1,VLOOKUP(R30,Données!G32:H48,2),0)","v":0},{"$f":"5","v":5},0]
[{"$nulls":8},"Réponses données :",{"$f":"Q6","v":0},{"$nulls":7},29,{"$f":"IF(R31<$Q$15+1,VLOOKUP(R31,Données!G33:H49,2),0)","v":0},{"$f":"5","v":5},0]
[{"$nulls":9},"new  ",{"$nulls":7},30,{"$f":"IF(R32<$Q$15+1,VLOOKUP(R32,Données!G34:H50,2),0)","v":0},{"$f":"5","v":5},0]
[{"$nulls":17},31,{"$f":"IF(R33<$Q$15+1,VLOOKUP(R33,Données!G35:H51,2),0)","v":0},{"$f":"5","v":5},0]
[null,"Choix des portraits",{"$nulls":15},32,{"$f":"IF(R34<$Q$15+1,VLOOKUP(R34,Données!G36:H52,2),0)","v":0},{"$f":"5","v":5},0]
[null,{"$f":"C35-1","v":0},1,{"$nulls":14},33,{"$f":"IF(R35<$Q$15+1,VLOOKUP(R35,Données!G37:H53,2),0)","v":0},{"$f":"5","v":5},0]
[null,"Zoom",{"$nulls":15},34,{"$f":"IF(R36<$Q$15+1,VLOOKUP(R36,Données!G38:H54,2),0)","v":0},{"$f":"5","v":5},0]
[{"$nulls":17},35,{"$f":"IF(R37<$Q$15+1,VLOOKUP(R37,Données!G39:H55,2),0)","v":0},{"$f":"5","v":5},0]
[{"$nulls":7},"© Yvan Péguiron - infodidac.ch - rév. 12.03.11 compatible Excel Mac 2011",{"$nulls":9},36,{"$f":"IF(R38<$Q$15+1,VLOOKUP(R38,Données!G40:H56,2),0)","v":0},{"$f":"5","v":5},0]
[{"$nulls":17},37,{"$f":"IF(R39<$Q$15+1,VLOOKUP(R39,Données!G41:H57,2),0)","v":0},{"$f":"5","v":5},0]
[{"$nulls":17},38,{"$f":"IF(R40<$Q$15+1,VLOOKUP(R40,Données!G42:H58,2),0)","v":0},{"$f":"5","v":5},0]
[{"$nulls":17},39,{"$f":"IF(R41<$Q$15+1,VLOOKUP(R41,Données!G43:H59,2),0)","v":0},{"$f":"5","v":5},0]
[{"$nulls":17},40,{"$f":"IF(R42<$Q$15+1,VLOOKUP(R42,Données!G44:H60,2),0)","v":0},{"$f":"5","v":5},0]
[{"$nulls":17},41,{"$f":"IF(R43<$Q$15+1,VLOOKUP(R43,Données!G45:H61,2),0)","v":0},{"$f":"5","v":5},0]
[{"$nulls":17},42,{"$f":"IF(R44<$Q$15+1,VLOOKUP(R44,Données!G46:H62,2),0)","v":0},{"$f":"5","v":5},0]
[{"$nulls":17},43,{"$f":"IF(R45<$Q$15+1,VLOOKUP(R45,Données!G47:H63,2),0)","v":0},{"$f":"5","v":5},0]
[{"$nulls":17},44,{"$f":"IF(R46<$Q$15+1,VLOOKUP(R46,Données!G48:H64,2),0)","v":0},{"$f":"5","v":5},0]
[{"$nulls":17},45,{"$f":"IF(R47<$Q$15+1,VLOOKUP(R47,Données!G49:H65,2),0)","v":0},{"$f":"5","v":5},0]
[{"$nulls":17},46,{"$f":"IF(R48<$Q$15+1,VLOOKUP(R48,Données!G50:H66,2),0)","v":0},{"$f":"5","v":5},0]
[{"$nulls":17},47,{"$f":"IF(R49<$Q$15+1,VLOOKUP(R49,Données!G51:H67,2),0)","v":0},{"$f":"5","v":5},0]
[{"$nulls":17},48,{"$f":"IF(R50<$Q$15+1,VLOOKUP(R50,Données!G52:H68,2),0)","v":0},{"$f":"5","v":5},0]
[{"$nulls":17},49,{"$f":"IF(R51<$Q$15+1,VLOOKUP(R51,Données!G53:H69,2),0)","v":0},{"$f":"5","v":5},0]
[{"$nulls":17},50,{"$f":"IF(R52<$Q$15+1,VLOOKUP(R52,Données!G54:H70,2),0)","v":0},{"$f":"5","v":5},0]
[{"$nulls":17},51,{"$f":"IF(R53<$Q$15+1,VLOOKUP(R53,Données!G55:H71,2),0)","v":0},{"$f":"5","v":5},0]
[{"$nulls":17},52,{"$f":"IF(R54<$Q$15+1,VLOOKUP(R54,Données!G56:H72,2),0)","v":0},{"$f":"5","v":5},0]
[{"$nulls":17},53,{"$f":"IF(R55<$Q$15+1,VLOOKUP(R55,Données!G57:H73,2),0)","v":0},{"$f":"5","v":5},0]
[{"$nulls":17},54,{"$f":"IF(R56<$Q$15+1,VLOOKUP(R56,Données!G58:H74,2),0)","v":0},{"$f":"5","v":5},0]
[{"$nulls":17},55,{"$f":"IF(R57<$Q$15+1,VLOOKUP(R57,Données!G59:H75,2),0)","v":0},{"$f":"5","v":5},0]
[{"$nulls":17},56,{"$f":"IF(R58<$Q$15+1,VLOOKUP(R58,Données!G60:H76,2),0)","v":0},{"$f":"5","v":5},0]
[{"$nulls":17},57,{"$f":"IF(R59<$Q$15+1,VLOOKUP(R59,Données!G61:H77,2),0)","v":0},{"$f":"5","v":5},0]
[{"$nulls":17},58,{"$f":"IF(R60<$Q$15+1,VLOOKUP(R60,Données!G62:H78,2),0)","v":0},{"$f":"5","v":5},0]
[{"$nulls":17},59,{"$f":"IF(R61<$Q$15+1,VLOOKUP(R61,Données!G63:H79,2),0)","v":0},{"$f":"5","v":5},0]
[{"$nulls":17},60,{"$f":"IF(R62<$Q$15+1,VLOOKUP(R62,Données!G64:H80,2),0)","v":0},{"$f":"5","v":5},0]

{"sheet":"Consignes","index":1,"n_rows":39,"n_cols":14,"rows_kept":39,"merged":[[1,1,2,1],[1,2,2,2],[1,3,2,3],[1,4,2,4],[1,5,2,5],[1,6,2,6],[1,7,2,7],[1,8,2,8],[1,9,2,9],[1,10,2,10],[1,11,2,11],[4,2,5,11],[6,2,7,11],[8,2,9,11],[11,3,14,10]]}
[]
[null,"S","U","P","E","R",null,"Q","U","I","Z"]
[]
[]
[null,null,"Le maître pose une question..."]
[]
[null,null,"...et quatre camarades te proposent des solutions."]
[]
[null,null,"      Un seul dit la vérité, à toi de trouver lequel !"]
[]
[]
[{"$nulls":3},"Clique sur le visage du maître pour obtenir une question, puis sur le visage du copain ou de la copine qui ne ment pas !"]
[]
[]
[]
[]
[]
[{"$nulls":4},"Tu peux changer ici le prénom des quatre camarades"]
[{"$nulls":3},"Choix ",1,2,3,4,5,6,7,8,9,10]
[null,null,1,{"$f":"HLOOKUP('  Q U I Z  '!$C$35,$E$19:$N$23,2)","v":"Annie"},"Annie","Dinh Lam","Alizée","Angelina","Abigaïl","Arava","Kant","Touria","Madona","Amaris"]
[null,null,2,{"$f":"HLOOKUP('  Q U I Z  '!$C$35,$E$19:$N$23,3)","v":"Béa"},"Béa","Samîra","Brenda","Brooklyn","Bélinda","Bin-Ying","Rousseau","Arouna","Vanessa","Basile"]
[null,null,3,{"$f":"HLOOKUP('  Q U I Z  '!$C$35,$E$19:$N$23,4)","v":"Chris"},"Chris","Marie","Charlène","Chloé","Cédric","Chama","Spinoza","Katsouko","George","Camellia"]
[null,null,4,{"$f":"HLOOKUP('  Q U I Z  '!$C$35,$E$19:$N$23,5)","v":"Dan"},"Dan","Jacob","Donan","Diana","Dennys","Diatou","Descartes","Sébastien","Britney","Dahlia"]
[]
[null,"Règle du jeu pour un joueur :"]
[null,"Si la case en bas à gauche est cochée, le joueur n'a droit qu'à une seule réponse par question."]
[null,"Dans ce cas, le score indique le nombre de bonnes réponses du premier coup."]
[null,"Dans le cas contraire, il faudra analyser le rapport entre les questions posées et les réponses données."]
[]
[null,"Règle du jeu pour deux joueurs :"]
[null,"On tire au sort celui qui commence."]
[null,"Le premier joueur tire sa question et tente d'y répondre. S'il répond juste du premier coup il obtient"]
[null,"1 point, sinon zéro point; dans les deux cas il passe la main au deuxième joueur."]
[null,"Le deuxième joueur s'il peut répondre à la question du premier gagne 2 points puis tire sa question."]
[null,"Dans le cas où il se trompe également  alors il perd tout et passe la main en sautant son tour."]
[]
[]
[null,"Pour commencer une nouvelle partie, il faut cliquer sur le petit"]
[null,"carré gris du coin inférieur droite."]

{"sheet":"Version papier","index":2,"n_rows":217,"n_cols":5,"rows_kept":217,"merged":[[0,0,0,6],[2,1,3,1],[7,1,8,1],[12,1,13,1],[17,1,18,1],[22,1,23,1],[27,1,28,1],[32,2,32,3],[33,1,34,1],[38,1,39,1],[43,1,44,1],[48,1,49,1],[53,1,54,1],[58,1,59,1],[63,2,63,3],[64,1,65,1],[69,1,70,1],[74,1,75,1],[79,1,80,1],[84,1,85,1],[89,1,90,1],[94,2,94,3],[95,1,96,1],[100,1,101,1],[105,1,106,1],[110,1,111,1],[115,1,116,1],[120,1,121,1],[125,2,125,3],[126,1,127,1],[131,1,132,1],[136,1,137,1],[141,1,142,1],[146,1,147,1],[151,1,152,1],[156,2,156,3],[157,1,158,1],[162,1,163,1],[167,1,168,1],[172,1,173,1],[177,1,178,1],[182,1,183,1],[187,2,187,3],[188,1,189,1],[193,1,194,1],[198,1,199,1],[203,1,204,1],[208,1,209,1],[213,1,214,1]]}
["QCM sur l'introduction au droit"]
[]
[{"$f":"Données!A5","v":1},{"$f":"Données!B5","v":"Qu'est-ce que la jurisprudence ?"},null,"A",{"$f":"Données!C5","v":"C'est l'interprétation de la loi par les tribunaux."}]
[{"$nulls":3},"B",{"$f":"Données!D5","v":"C'est l'ensemble des règles non écrites communes à une société."}]
[{"$nulls":3},"C",{"$f":"Données!E5","v":"C'est l'ensemble des textes de loi votés par le parlement."}]
[{"$nulls":3},"D",{"$f":"Données!F5","v":"C'est une façon d'être prudent dans la vie."}]
[]
[{"$f":"Données!A6","v":2},{"$f":"Données!B6","v":"Quelle est l'étymologie du mot droit ?"},null,"A",{"$f":"Données!C6","v":"Cela vient du mot grec \"doctorios \" qui signifie doctrine !"}]
[{"$nulls":3},"B",{"$f":"Données!D6","v":"Cela vient du mot du mot \" dextra \" qui veut dire la main droite, la justesse !"}]
[{"$nulls":3},"C",{"$f":"Données!E6","v":"Cela vient du mot \"dominus \" qui signifie \" le maître \" !"}]
[{"$nulls":3},"D",{"$f":"Données!F6","v":"Cela vient du mot latin \" direction \" qui est lié à la notion d'autorité !"}]
[]
[{"$f":"Données!A7","v":3},{"$f":"Données!B7","v":"Quelle est la source la plus ancienne du droit ?"},null,"A",{"$f":"Données!C7","v":"C'est le bâton ! Le droit du plus fort !"}]
[{"$nulls":3},"B",{"$f":"Données!D7","v":"C'est la doctrine !"}]
[{"$nulls":3},"C",{"$f":"Données!E7","v":"C'est la coutume !"}]
[{"$nulls":3},"D",{"$f":"Données!F7","v":"C'est la jurisprudence !"}]
[]
[{"$f":"Données!A8","v":4},{"$f":"Données!B8","v":"Est-ce le droit Fédéral qui prime sur le droit cantonal, ou l'inverse ?"},null,"A",{"$f":"Données!C8","v":"Ils sont à égalité !"}]
[{"$nulls":3},"B",{"$f":"Données!D8","v":"C'est le droit fédéral qui prime sur le droit cantonal !"}]
[{"$nulls":3},"C",{"$f":"Données!E8","v":"C'est le droit cantonal qui prime sur tout !"}]
[{"$nulls":3},"D",{"$f":"Données!F8","v":"Ni l'un ni l'autre ne vient avant !"}]
[]
[{"$f":"Données!A9","v":5},{"$f":"Données!B9","v":"À quoi sert la doctrine ?"},null,"A",{"$f":"Données!C9","v":"Faciliter la compréhension des règles et des problèmes juridique. "}]
[{"$nulls":3},"B",{"$f":"Données!D9","v":"Permettre à un Koala venant de Nouvelle-Zélande d'apprendre l'Histoire Suisse…"}]
[{"$nulls":3},"C",{"$f":"Données!E9","v":"À enseigner la manière de contourner la loi !"}]
[{"$nulls":3},"D",{"$f":"Données!F9","v":"À avoir l'air sérieux lorsqu'on parle de la loi…"}]
[]
[{"$f":"Données!A10","v":6},{"$f":"Données!B10","v":"Qu'est-ce qui distingue la coutume de la tradition ?"},null,"A",{"$f":"Données!C10","v":"La coutume est à l'origine de la tradition, elles sont orales…"}]
[{"$nulls":3},"B",{"$f":"Données!D10","v":"La coutume est une source récente du droit !"}]
[{"$nulls":3},"C",{"$f":"Données!E10","v":"La tradition est à l'origine de la coutume qui est source du droit."}]
[{"$nulls":3},"D",{"$f":"Données!F10","v":"La tradition s'adresse aux vieux et la coutume à tout le monde…"}]
[]
[null,null,"page 2"]
[{"$f":"Données!A11","v":7},{"$f":"Données!B11","v":"Qu'est-ce qui différencie la coutume de la jurisprudence ?"},null,"A",{"$f":"Données!C11","v":"La coutume crée la jurisprudence…"}]
[{"$nulls":3},"B",{"$f":"Données!D11","v":"Les deux sont orales !"}]
[{"$nulls":3},"C",{"$f":"Données!E11","v":"La coutume est plus ancienne !"}]
[{"$nulls":3},"D",{"$f":"Données!F11","v":"la jurisprudence est une coutume écrite du droit moderne…"}]
[]
[{"$f":"Données!A12","v":8},{"$f":"Données!B12","v":"Durant combien de temps une œuvre est protégée après le décès de son auteur ?"},null,"A",{"$f":"Données!C12","v":"2 ans !"}]
[{"$nulls":3},"B",{"$f":"Données!D12","v":"4 ans !"}]
[{"$nulls":3},"C",{"$f":"Données!E12","v":"30 ans !"}]
[{"$nulls":3},"D",{"$f":"Données!F12","v":"70 ans !"}]
[]
[{"$f":"Données!A12","v":8},{"$f":"Données!B12","v":"Durant combien de temps une œuvre est protégée après le décès de son auteur ?"},null,"A",{"$f":"Données!C12","v":"2 ans !"}]
[{"$nulls":3},"B",{"$f":"Données!D12","v":"4 ans !"}]
[{"$nulls":3},"C",{"$f":"Données!E12","v":"30 ans !"}]
[{"$nulls":3},"D",{"$f":"Données!F12","v":"70 ans !"}]
[]
[{"$f":"Données!A13","v":9},{"$f":"Données!B13","v":"À quoi sert le droit pénal ?"},null,"A",{"$f":"Données!C13","v":"Il définit les infractions et leurs répressions…"}]
[{"$nulls":3},"B",{"$f":"Données!D13","v":"Il organise les services publics !"}]
[{"$nulls":3},"C",{"$f":"Données!E13","v":"Il règle l'organisation de l'Etat…"}]
[{"$nulls":3},"D",{"$f":"Données!F13","v":"Il gère la manière de conduire un procès devant les tribunaux."}]
[]
[{"$f":"Données!A14","v":10},{"$f":"Données!B14","v":"Que détermine le droit de la famille ?"},null,"A",{"$f":"Données!C14","v":"La répartition des biens en cas de décès…"}]
[{"$nulls":3},"B",{"$f":"Données!D14","v":"Il détermine les fiançailles, les régimes matrimoniaux, le divorce, l'union libre et le partenariat."}]
[{"$nulls":3},"C",{"$f":"Données!E14","v":"Le droit d'aimer ou de détester ses parents."}]
[{"$nulls":3},"D",{"$f":"Données!F14","v":"Le droit qui gère les relations entre l'état et les familles."}]
[]
[{"$f":"Données!A15","v":11},{"$f":"Données!B15","v":"Que définit le droit du travail ?"},null,"A",{"$f":"Données!C15","v":"Les infractions au travail !"}]
[{"$nulls":3},"B",{"$f":"Données!D15","v":"Il détermine le droit au travail !"}]
[{"$nulls":3},"C",{"$f":"Données!E15","v":"Il définit les relations contractuelles entre employeurs et employés !"}]
[{"$nulls":3},"D",{"$f":"Données!F15","v":"Il définit les manières de travailler !"}]
[]
[null,null,"page 3"]
[{"$f":"Données!A15","v":11},{"$f":"Données!B15","v":"Que définit le droit du travail ?"},null,"A",{"$f":"Données!C15","v":"Les infractions au travail !"}]
[{"$nulls":3},"B",{"$f":"Données!D15","v":"Il détermine le droit au travail !"}]
[{"$nulls":3},"C",{"$f":"Données!E15","v":"Il définit les relations contractuelles entre employeurs et employés !"}]
[{"$nulls":3},"D",{"$f":"Données!F15","v":"Il définit les manières de travailler !"}]
[]
[{"$f":"Données!A16","v":12},{"$f":"Données!B16","v":"Qu'est-ce que le Droit ? À quoi sert-il ?"},null,"A",{"$f":"Données!C16","v":"À justifier ce qu'on a envie de faire !"}]
[{"$nulls":3},"B",{"$f":"Données!D16","v":"À rendre tous les humains libres !"}]
[{"$nulls":3},"C",{"$f":"Données!E16","v":"À envoyer les bandits en prison !"}]
[{"$nulls":3},"D",{"$f":"Données!F16","v":"C'est un ensemble de règles de conduite imposées à tous et qui permettent la vie en société."}]
[]
[{"$f":"Données!A17","v":13},{"$f":"Données!B17","v":"Que faut-il pour qu'une initiative aboutisse ?"},null,"A",{"$f":"Données!C17","v":"10'000 signatures en 18 mois !"}]
[{"$nulls":3},"B",{"$f":"Données!D17","v":"20'000 signatures en 20 mois !"}]
[{"$nulls":3},"C",{"$f":"Données!E17","v":"100'000 signatures en 18 mois !"}]
[{"$nulls":3},"D",{"$f":"Données!F17","v":"20'000 signatures en 12 mois !"}]
[]
[{"$f":"Données!A18","v":14},{"$f":"Données!B18","v":"Quel est le fondement du droit dans les états modernes ?"},null,"A",{"$f":"Données!C18","v":"Le contrôle de constitutionnalité !"}]
[{"$nulls":3},"B",{"$f":"Données!D18","v":"La séparation des pouvoirs et l'état de droit !"}]
[{"$nulls":3},"C",{"$f":"Données!E18","v":"Des principes moraux et religieux dans la constitution !"}]
[{"$nulls":3},"D",{"$f":"Données!F18","v":"Avoir un Etat fort avec beaucoup de policier !"}]
[]
[{"$f":"Données!A19","v":15},{"$f":"Données!B19","v":"Quels sont les deux grands domaines du droit ?"},null,"A",{"$f":"Données!C19","v":"Le droit public et le droit privé !"}]
[{"$nulls":3},"B",{"$f":"Données!D19","v":"Le Code civil et le code des obligations"}]
[{"$nulls":3},"C",{"$f":"Données!E19","v":"Le droit constitutionnel et les lois"}]
[{"$nulls":3},"D",{"$f":"Données!F19","v":"La loi et la jurisprudence"}]
[]
[{"$f":"Données!A20","v":16},{"$f":"Données!B20","v":"Que régit le droit privé ?"},null,"A",{"$f":"Données!C20","v":"La loi est la même pour tout le monde !"}]
[{"$nulls":3},"B",{"$f":"Données!D20","v":"Les intérêts privés des personnes !"}]
[{"$nulls":3},"C",{"$f":"Données!E20","v":"Le Code civil !"}]
[{"$nulls":3},"D",{"$f":"Données!F20","v":"Les relations des personnes physiques ou morales entre elles !"}]
[]
[null,null,"page 4"]
[{"$f":"Données!A21","v":17},{"$f":"Données!B21","v":"Qu'est-ce que le droit constitutionnel ?"},null,"A",{"$f":"Données!C21","v":"C'est le droit qui définit l'organisation de l'Etat !"}]
[{"$nulls":3},"B",{"$f":"Données!D21","v":"C'est le droit qui définit l'organisation du Conseil Fédéral !"}]
[{"$nulls":3},"C",{"$f":"Données!E21","v":"Il organise l'Etat (fédéral & cantonal), les droits fondamentaux & politiques et les pouvoirs exécutifs, judiciaires & législatifs."}]
[{"$nulls":3},"D",{"$f":"Données!F21","v":"C'est le droit qui régit la constitution !"}]
[]
[{"$f":"Données!A22","v":18},{"$f":"Données!B22","v":"Quel droit gère les services de l'Etat, les finances publiques, le social et le domaine des religions ?"},null,"A",{"$f":"Données!C22","v":"Le droit public !"}]
[{"$nulls":3},"B",{"$f":"Données!D22","v":"Le droit administratif !"}]
[{"$nulls":3},"C",{"$f":"Données!E22","v":"Le droit fiscal !"}]
[{"$nulls":3},"D",{"$f":"Données!F22","v":"Le droit des personnes !"}]
[]
[{"$f":"Données!A23","v":19},{"$f":"Données!B23","v":"Qu'est-ce que le droit international ?"},null,"A",{"$f":"Données!C23","v":"Ce droit est constitué des accords, traités et conventions cosignés par les Etats au niveau international !"}]
[{"$nulls":3},"B",{"$f":"Données!D23","v":"C'est le droit des organisations internationales !"}]
[{"$nulls":3},"C",{"$f":"Données!E23","v":"C'est le droit qui gère les Droits de l'Homme !"}]
[{"$nulls":3},"D",{"$f":"Données!F23","v":"C'est le droit qui gère les conflits entre les états !"}]
[]
[{"$f":"Données!A24","v":20},{"$f":"Données!B24","v":"Qu'est-ce que le droit interne ?"},null,"A",{"$f":"Données!C24","v":"C'est le droit qui régit les procédures !"}]
[{"$nulls":3},"B",{"$f":"Données!D24","v":"C'est le droit des personnes !"}]
[{"$nulls":3},"C",{"$f":"Données!E24","v":"C'est le droit de la famille !"}]
[{"$nulls":3},"D",{"$f":"Données!F24","v":"C'est le droit interne à un pays !"}]
[]
[{"$f":"Données!A25","v":21},{"$f":"Données!B25","v":"À quoi sert le pouvoir législatif ?"},null,"A",{"$f":"Données!C25","v":"À organiser les lois !"}]
[{"$nulls":3},"B",{"$f":"Données!D25","v":"À créer ou modifier les lois !"}]
[{"$nulls":3},"C",{"$f":"Données!E25","v":"À gérer le Conseil Fédéral !"}]
[{"$nulls":3},"D",{"$f":"Données!F25","v":"À contrôler les finances de l'Etat !"}]
[]
[{"$f":"Données!A26","v":22},{"$f":"Données!B26","v":"Qu'est-ce que la séparation des pouvoirs ?"},null,"A",{"$f":"Données!C26","v":"C'est la séparation du religieux et de l'Etat !"}]
[{"$nulls":3},"B",{"$f":"Données!D26","v":"C'est la séparation du privé et du public !"}]
[{"$nulls":3},"C",{"$f":"Données!E26","v":"C'est l'indépendance et la séparation entre l'exécutif, le judiciaire et le législatif !"}]
[{"$nulls":3},"D",{"$f":"Données!F26","v":"C'est la séparation de corps avant le divorce !"}]
[]
[null,null,"page 5"]
[{"$f":"Données!A27","v":23},{"$f":"Données!B27","v":"Qu'est-ce que le droit subjectif ?"},null,"A",{"$f":"Données!C27","v":"C'est la possibilité que le droit donne à une personne de faire appel à une décision juridique !"}]
[{"$nulls":3},"B",{"$f":"Données!D27","v":"C'est le droit qu'on pense avoir de pouvoir faire quelque chose !"}]
[{"$nulls":3},"C",{"$f":"Données!E27","v":"C'est la représentation que chacun a de ses droits !"}]
[{"$nulls":3},"D",{"$f":"Données!F27","v":"C'est le droit naturel de chacun !"}]
[]
[{"$f":"Données!A28","v":24},{"$f":"Données!B28","v":"Qu'est-ce que le droit objectif ?"},null,"A",{"$f":"Données!C28","v":"C'est une manière objective d'interpréter le droit !"}]
[{"$nulls":3},"B",{"$f":"Données!D28","v":"C'est la manière de voir des juges !"}]
[{"$nulls":3},"C",{"$f":"Données!E28","v":"C'est la doctrine !"}]
[{"$nulls":3},"D",{"$f":"Données!F28","v":"On doit obéir au droit objectif, alors que l'on est titulaire d'un ou plusieurs droits subjectifs !"}]
[]
[{"$f":"Données!A29","v":25},{"$f":"Données!B29","v":"Qu'est-ce que le droit des assurances ?"},null,"A",{"$f":"Données!C29","v":"C'est la partie du droit qui gère les contrats d'assurance !"}]
[{"$nulls":3},"B",{"$f":"Données!D29","v":"C'est le droit qui régit les assurances sociales !"}]
[{"$nulls":3},"C",{"$f":"Données!E29","v":"C'est le droit des procédures !"}]
[{"$nulls":3},"D",{"$f":"Données!F29","v":"C'est du droit administratif !"}]
[]
[{"$f":"Données!A30","v":26},{"$f":"Données!B30","v":0},null,"A",{"$f":"Données!C30","v":0}]
[{"$nulls":3},"B",{"$f":"Données!D30","v":0}]
[{"$nulls":3},"C",{"$f":"Données!E30","v":0}]
[{"$nulls":3},"D",{"$f":"Données!F30","v":0}]
[]
[{"$f":"Données!A31","v":27},{"$f":"Données!B31","v":0},null,"A",{"$f":"Données!C31","v":0}]
[{"$nulls":3},"B",{"$f":"Données!D31","v":0}]
[{"$nulls":3},"C",{"$f":"Données!E31","v":0}]
[{"$nulls":3},"D",{"$f":"Données!F31","v":0}]
[]
[{"$f":"Données!A32","v":28},{"$f":"Données!B32","v":0},null,"A",{"$f":"Données!C32","v":0}]
[{"$nulls":3},"B",{"$f":"Données!D32","v":0}]
[{"$nulls":3},"C",{"$f":"Données!E32","v":0}]
[{"$nulls":3},"D",{"$f":"Données!F32","v":0}]
[]
[null,null,"page 6"]
[{"$f":"Données!A33","v":29},{"$f":"Données!B33","v":0},null,"A",{"$f":"Données!C33","v":0}]
[{"$nulls":3},"B",{"$f":"Données!D33","v":0}]
[{"$nulls":3},"C",{"$f":"Données!E33","v":0}]
[{"$nulls":3},"D",{"$f":"Données!F33","v":0}]
[]
[{"$f":"Données!A34","v":30},{"$f":"Données!B34","v":0},null,"A",{"$f":"Données!C34","v":0}]
[{"$nulls":3},"B",{"$f":"Données!D34","v":0}]
[{"$nulls":3},"C",{"$f":"Données!E34","v":0}]
[{"$nulls":3},"D",{"$f":"Données!F34","v":0}]
[]
[{"$f":"Données!A35","v":31},{"$f":"Données!B35","v":0},null,"A",{"$f":"Données!C35","v":0}]
[{"$nulls":3},"B",{"$f":"Données!D35","v":0}]
[{"$nulls":3},"C",{"$f":"Données!E35","v":0}]
[{"$nulls":3},"D",{"$f":"Données!F35","v":0}]
[]
[{"$f":"Données!A36","v":32},{"$f":"Données!B36","v":0},null,"A",{"$f":"Données!C36","v":0}]
[{"$nulls":3},"B",{"$f":"Données!D36","v":0}]
[{"$nulls":3},"C",{"$f":"Données!E36","v":0}]
[{"$nulls":3},"D",{"$f":"Données!F36","v":0}]
[]
[{"$f":"Données!A37","v":33},{"$f":"Données!B37","v":0},null,"A",{"$f":"Données!C37","v":0}]
[{"$nulls":3},"B",{"$f":"Données!D37","v":0}]
[{"$nulls":3},"C",{"$f":"Données!E37","v":0}]
[{"$nulls":3},"D",{"$f":"Données!F37","v":0}]
[]
[{"$f":"Données!A38","v":34},{"$f":"Données!B38","v":0},null,"A",{"$f":"Données!C38","v":0}]
[{"$nulls":3},"B",{"$f":"Données!D38","v":0}]
[{"$nulls":3},"C",{"$f":"Données!E38","v":0}]
[{"$nulls":3},"D",{"$f":"Données!F38","v":0}]
[]
[null,null,"page 7"]
[{"$f":"Données!A39","v":35},{"$f":"Données!B39","v":0},null,"A",{"$f":"Données!C39","v":0}]
[{"$nulls":3},"B",{"$f":"Données!D39","v":0}]
[{"$nulls":3},"C",{"$f":"Données!E39","v":0}]
[{"$nulls":3},"D",{"$f":"Données!F39","v":0}]
[]
[{"$f":"Données!A40","v":36},{"$f":"Données!B40","v":0},null,"A",{"$f":"Données!C40","v":0}]
[{"$nulls":3},"B",{"$f":"Données!D40","v":0}]
[{"$nulls":3},"C",{"$f":"Données!E40","v":0}]
[{"$nulls":3},"D",{"$f":"Données!F40","v":0}]
[]
[{"$f":"Données!A41","v":37},{"$f":"Données!B41","v":0},null,"A",{"$f":"Données!C41","v":0}]
[{"$nulls":3},"B",{"$f":"Données!D41","v":0}]
[{"$nulls":3},"C",{"$f":"Données!E41","v":0}]
[{"$nulls":3},"D",{"$f":"Données!F41","v":0}]
[]
[{"$f":"Données!A42","v":38},{"$f":"Données!B42","v":0},null,"A",{"$f":"Données!C42","v":0}]
[{"$nulls":3},"B",{"$f":"Données!D42","v":0}]
[{"$nulls":3},"C",{"$f":"Données!E42","v":0}]
[{"$nulls":3},"D",{"$f":"Données!F42","v":0}]
[]
[{"$f":"Données!A43","v":39},{"$f":"Données!B43","v":0},null,"A",{"$f":"Données!C43","v":0}]
[{"$nulls":3},"B",{"$f":"Données!D43","v":0}]
[{"$nulls":3},"C",{"$f":"Données!E43","v":0}]
[{"$nulls":3},"D",{"$f":"Données!F43","v":0}]
[]
[{"$f":"Données!A44","v":40},{"$f":"Données!B44","v":0},null,"A",{"$f":"Données!C44","v":0}]
[{"$nulls":3},"B",{"$f":"Données!D44","v":0}]
[{"$nulls":3},"C",{"$f":"Données!E44","v":0}]
[{"$nulls":3},"D",{"$f":"Données!F44","v":0}]

{"sheet":"Données","index":3,"n_rows":45,"n_cols":15,"rows_kept":45,"hidden":true,"merged":[[1,2,1,5],[1,8,1,11]]}
[1,2,3,4,5,6,1,2,3,4,5,6]
["Total","Question","propositions",{"$nulls":4},"Rép.","Commentaires",{"$nulls":4},"Si qu'une réponse :",{"$f":"IF('  Q U I Z  '!Q18=TRUE,\"Non, désolé\",\"Cherche encore !\")","v":"Cherche encore !"}]
[{"$f":"COUNTA(B5:B45)","v":25},null,1,2,3,4,null,"juste",1,2,3,4]
[0,"Cliquer sur ma tête pour obtenir une question d'introduction au droit",{"$f":"\"Salut, mon nom est \" & Consignes!D20","v":"Salut, mon nom est Annie"},{"$f":"\" Moi, je m'appelle \" & Consignes!D21","v":" Moi, je m'appelle Béa"},{"$f":"\"... et moi \" & Consignes!D22","v":"... et moi Chris"},{"$f":"\"Hello, je suis \" & Consignes!D23","v":"Hello, je suis Dan"},0]
[1,"Qu'est-ce que la jurisprudence ?","C'est l'interprétation de la loi par les tribunaux.","C'est l'ensemble des règles non écrites communes à une société.","C'est l'ensemble des textes de loi votés par le parlement.","C'est une façon d'être prudent dans la vie.",1,1,"La jurisprudence est l'ensemble des décisions rendues par les tribunaux sur la base des cas concrets qui leur sont soumis. ","Désolé ! Mais jurisprudence, cela ressemble un peu à juriste, non ? ","Oups ! Courage cherche encore !","Mon petit doigt me dit que cela doit avoir un rapport avec le judiciaire…"]
[2,"Quelle est l'étymologie du mot droit ?","Cela vient du mot grec \"doctorios \" qui signifie doctrine !","Cela vient du mot du mot \" dextra \" qui veut dire la main droite, la justesse !","Cela vient du mot \"dominus \" qui signifie \" le maître \" !","Cela vient du mot latin \" direction \" qui est lié à la notion d'autorité !",2,4,"Désolé ! Cherche encore…","Peut-être qu'il faut regarder du côté du latin ?","Le maître est le garant de l'autorité ! Tu brûles…","\"directum\", dérivé de dirigere (diriger) et \"jus\" dérivé de \"jussus\", \"jubere\", ordonner. On met ici l'accent sur l'autorité et l'aspect social du droit."]
[3,"Quelle est la source la plus ancienne du droit ?","C'est le bâton ! Le droit du plus fort !","C'est la doctrine !","C'est la coutume !","C'est la jurisprudence !",3,3,"La loi du plus fort a effectivement été à l'origine du droit pour protéger le plus faible…","Désolé ! La doctrine influence le futur de la loi…","La coutume était la loi orale bien avant qu'elle ne soit écrite…","Désolé, cherche encore !"]
[4,"Est-ce le droit Fédéral qui prime sur le droit cantonal, ou l'inverse ?","Ils sont à égalité !","C'est le droit fédéral qui prime sur le droit cantonal !","C'est le droit cantonal qui prime sur tout !","Ni l'un ni l'autre ne vient avant !",4,2,"Le droit est hiérarchique, il ne peut y avoir d'égalité…","Bravo ! Effectivement, le droit cantonal déroge au droit fédéral…","Désolé ! Il ne te reste que l'autre réponse…","Courage, il ne te reste que l'autre possibilité !"]
[5,"À quoi sert la doctrine ?","Faciliter la compréhension des règles et des problèmes juridique. ","Permettre à un Koala venant de Nouvelle-Zélande d'apprendre l'Histoire Suisse…","À enseigner la manière de contourner la loi !","À avoir l'air sérieux lorsqu'on parle de la loi…",5,1,"Oui ! La doctrine est les publications sur le droit qui orientent le futur de la loi et l'adapte à la société…","Seulement pour les Koalas qui savent lire !","Il est vrai que pour contourner la loi, il faut déjà la comprendre !","Le sérieux ne fait pas forcément le juriste !"]
[6,"Qu'est-ce qui distingue la coutume de la tradition ?","La coutume est à l'origine de la tradition, elles sont orales…","La coutume est une source récente du droit !","La tradition est à l'origine de la coutume qui est source du droit.","La tradition s'adresse aux vieux et la coutume à tout le monde…",6,3,"La tradition inspire la coutume. La bible ou le Coran sont des traditions, mais elles sont pourtant écrites…","Désolé, cherche encore !","La coutume est liée à la tradition qui l'inspire. La coutume est l'application de la tradition…","Ce n’est pas vraiment évident n'est-ce pas ?"]
[7,"Qu'est-ce qui différencie la coutume de la jurisprudence ?","La coutume crée la jurisprudence…","Les deux sont orales !","La coutume est plus ancienne !","la jurisprudence est une coutume écrite du droit moderne…",7,4,"C'était vrai au Moyen-Âge, mais plus aujourd'hui !","Il existe des coutumes écrites !","Pas forcément, au Moyen-Âge, le coutumier, au sens d’assesseur de justice, transmettait et récitait la coutume dans les tribunaux.","Oui, la jurisprudence est une source de droit vivante, car elle évolue, se modifie alors que la coutume est un usage souvent ancien voire très ancien qui peut se perdre."]
[8,"Durant combien de temps une œuvre est protégée après le décès de son auteur ?","2 ans !","4 ans !","30 ans !","70 ans !",8,4,"Le droit d'auteur est protégé…","Le droit de la propriété intellectuelle vise la protection des biens immatériels.","Télécharger illégalement une œuvre musicale sur le web, c'est du vol !","50 ans pour les logiciels !"]
[9,"À quoi sert le droit pénal ?","Il définit les infractions et leurs répressions…","Il organise les services publics !","Il règle l'organisation de l'Etat…","Il gère la manière de conduire un procès devant les tribunaux.",9,1,"Il réprime les actes qui mettent en danger la sécurité et l'intégrité des personnes ou des biens. Il garantit l'ordre public.","Cherche encore ! Pénal cela vient de quoi ?","Du latin : \"poenas, pendere\" : expier…","Dans pénal, il y a peine…"]
[10,"Que détermine le droit de la famille ?","La répartition des biens en cas de décès…","Il détermine les fiançailles, les régimes matrimoniaux, le divorce, l'union libre et le partenariat.","Le droit d'aimer ou de détester ses parents.","Le droit qui gère les relations entre l'état et les familles.",10,2,"Non, ça c'est le droit des successions…","Le droit de la famille gère l'organisation et les relations des personnes qui vivent ensemble.","Le droit de la famille détermine les droits et les devoirs de chacun dans une famille.","L'Etat officialise les liens juridiques des personnes vivant ensemble."]
[11,"Que définit le droit du travail ?","Les infractions au travail !","Il détermine le droit au travail !","Il définit les relations contractuelles entre employeurs et employés !","Il définit les manières de travailler !",11,3,"Le travail est une forme de contrat !","Le droit au travail n'a rien à voir avec le droit du travail.","Le droit du travail régit la loi sur le travail, les conventions collectives, les contrats de travail.","Cela peut être le cas dans les conventions collectives."]
[12,"Qu'est-ce que le Droit ? À quoi sert-il ?","À justifier ce qu'on a envie de faire !","À rendre tous les humains libres !","À envoyer les bandits en prison !","C'est un ensemble de règles de conduite imposées à tous et qui permettent la vie en société.",12,4,"Pour autant qu'on en a le droit !","Le droit ne rend pas libre il protège le faible du fort. Il favorise l'équité.","Effectivement, pour ce qui est du droit pénal !","Le droit est applicable à l'ensemble de la population d'un pays et à ses autorités."]
[13,"Que faut-il pour qu'une initiative aboutisse ?","10'000 signatures en 18 mois !","20'000 signatures en 20 mois !","100'000 signatures en 18 mois !","20'000 signatures en 12 mois !",13,3,"L'initiative est le droit qu'ont les citoyens suisses de proposer une modification de la Constitution fédérale.","Si l'initiative aboutit, le Conseil fédéral est tenu de soumettre le texte à votation populaire.","L'initiative populaire comme le droit de référendum sont des droits constitutionnels.","La double majorité du peuple et des cantons est requise pour que l'initiative soit acceptée. "]
[14,"Quel est le fondement du droit dans les états modernes ?","Le contrôle de constitutionnalité !","La séparation des pouvoirs et l'état de droit !","Des principes moraux et religieux dans la constitution !","Avoir un Etat fort avec beaucoup de policier !",14,2,"La Suisse est un cas particulier où cette fonction n'existe pas, car la démocratie directe donne toujours le dernier mot au peuple.","La séparation des pouvoirs est le respect des règles qui gèrent les pouvoirs de l'Etat sont la garantie d'une organisation politique équitable et aboutie.","Si pendant longtemps la morale et la religion avaient force de loi, aujourd'hui cela est beaucoup plus relativisé.","Cela serait plutôt une dictature !"]
[15,"Quels sont les deux grands domaines du droit ?","Le droit public et le droit privé !","Le Code civil et le code des obligations","Le droit constitutionnel et les lois","La loi et la jurisprudence",15,1,"Le droit public régit l'organisation de l'Etat et ses rapports avec les personnes tendis que le droit privé régit les rapports juridiques entre les personnes physiques ou morales.","Ces codes font partie du droit privé…","La constitution est la loi-cadre, aucune loi ne peut la contredire.","La loi et la jurisprudence sont les sources principales du droit."]
[16,"Que régit le droit privé ?","La loi est la même pour tout le monde !","Les intérêts privés des personnes !","Le Code civil !","Les relations des personnes physiques ou morales entre elles !",16,4,"Même si certains ne s'estiment pas être comme tout le monde !","Il ne faut pas confondre intérêts privés et rapports juridiques","C'est une sous-catégorie du droit privé.","Il est fondé sur l'égalité de traitement entre les parties."]
[17,"Qu'est-ce que le droit constitutionnel ?","C'est le droit qui définit l'organisation de l'Etat !","C'est le droit qui définit l'organisation du Conseil Fédéral !","Il organise l'Etat (fédéral & cantonal), les droits fondamentaux & politiques et les pouvoirs exécutifs, judiciaires & législatifs.","C'est le droit qui régit la constitution !",17,3,"L'organisation des services de l'Etat est régie par le droit administratif…","Le droit constitutionnel s'occupe effectivement de gérer les compétences des différents pouvoirs d'un pays.","Il définit L'état de droit, la constitution, les droits fondamentaux & politiques, la nationalité et les pouvoirs exécutifs, judiciaires & législatifs.","La Constitution est une sous-catégorie du droit constitutionnel."]
[18,"Quel droit gère les services de l'Etat, les finances publiques, le social et le domaine des religions ?","Le droit public !","Le droit administratif !","Le droit fiscal !","Le droit des personnes !",18,2,"Ces domaines du droit sont effectivement une sous-catégorie du droit public…","Le droit administratif délimite les compétences de l'Etat et organise l'activité de l'administration.","Le droit fiscal est une sous-catégorie du droit administratif…","Le droit des personnes est une sous-catégorie du Code civil (droit privé)."]
[19,"Qu'est-ce que le droit international ?","Ce droit est constitué des accords, traités et conventions cosignés par les Etats au niveau international !","C'est le droit des organisations internationales !","C'est le droit qui gère les Droits de l'Homme !","C'est le droit qui gère les conflits entre les états !",19,1,"Dans sa jurisprudence récente, le Tribunal fédéral confirme sans aucune réserve le principe de la primauté du droit international sur le droit interne.","Le fonctionnement des organisations internationales est géré par une partie du droit international…","Le principe des Droits de l'Homme est géré par l'ONU, une organisation internationale soumise à une partie du droit international.","Le tribunal international de la Haye est effectivement géré par le droit international."]
[20,"Qu'est-ce que le droit interne ?","C'est le droit qui régit les procédures !","C'est le droit des personnes !","C'est le droit de la famille !","C'est le droit interne à un pays !",20,4,"Le droit des procédures fait partie du droit interne public.","Le droit des personnes fait partie du droit privé interne.","Le droit de la famille fait partie du droit privé interne","Oui, en opposition au droit international. Une disposition juridique internationale qui lie la Suisse est automatiquement valable en droit interne."]
[21,"À quoi sert le pouvoir législatif ?","À organiser les lois !","À créer ou modifier les lois !","À gérer le Conseil Fédéral !","À contrôler les finances de l'Etat !",21,2,"Pas seulement, il fait plus que cela…","Oui, aussi bien au niveau fédéral que cantonal. Le législatif a aussi des compétences financières, de contrôle et d'évaluation.","Les chambres fédérales ont aussi pour rôle de contrôler l'exécutif. C'est elles notamment qui nomment les conseillés fédéraux.","C'est une partie du travail des chambres aussi bien fédérales que cantonales."]
[22,"Qu'est-ce que la séparation des pouvoirs ?","C'est la séparation du religieux et de l'Etat !","C'est la séparation du privé et du public !","C'est l'indépendance et la séparation entre l'exécutif, le judiciaire et le législatif !","C'est la séparation de corps avant le divorce !",22,3,"En 1748, après la Révolution française, cela a été le début du processus…","Effectivement, cette séparation du droit privé et public est moderne et découle de la théorie de la séparation des pouvoirs.","C'est le fondement du droit moderne. Ce principe a été formulé par Montesquieu dans \"L'esprit des lois\", en 1748, à Genève.","Désolé, cherche encore !"]
[23,"Qu'est-ce que le droit subjectif ?","C'est la possibilité que le droit donne à une personne de faire appel à une décision juridique !","C'est le droit qu'on pense avoir de pouvoir faire quelque chose !","C'est la représentation que chacun a de ses droits !","C'est le droit naturel de chacun !",23,1,"Ce sont les prérogatives particulières dont une personne peut se prévaloir, soit sur une chose, soit sur une personne déterminée.","Désolé, cherche encore !","Désolé ! Ce n'est pas cela…","Désolé, cherche encore… Tu n'es pas bien loin !"]
[24,"Qu'est-ce que le droit objectif ?","C'est une manière objective d'interpréter le droit !","C'est la manière de voir des juges !","C'est la doctrine !","On doit obéir au droit objectif, alors que l'on est titulaire d'un ou plusieurs droits subjectifs !",24,4,"Désolé ! Cherche encore…","Non, pas vraiment !","Non, cherche encore !","C'est l'ensemble des règles obligatoires qui régissent la vie des hommes dans la société."]
[25,"Qu'est-ce que le droit des assurances ?","C'est la partie du droit qui gère les contrats d'assurance !","C'est le droit qui régit les assurances sociales !","C'est le droit des procédures !","C'est du droit administratif !",25,2,"Cela dépend desquels ? …","Oui, maladie, accident, AVS, AI, prévoyance, chômage, RC, perte de gain.","Non , bien que cela fasse partie aussi du droit public…","Non, comme le droit administratif, c'est une partie du droit public…"]
[26,{"$nulls":5},26,null,{"$f":"IF(I$3=$H30,\"Bravo !\",$O$2)","v":"Cherche encore !"},"Cherche encore !","Cherche encore !","Cherche encore !"]
[27,{"$nulls":5},27,null,"Cherche encore !","Cherche encore !","Cherche encore !","Cherche encore !"]
[28,{"$nulls":5},28,null,"Cherche encore !","Cherche encore !","Cherche encore !","Cherche encore !"]
[29,{"$nulls":5},29,null,"Cherche encore !","Cherche encore !","Cherche encore !","Cherche encore !"]
[30,{"$nulls":5},30,null,"Cherche encore !","Cherche encore !","Cherche encore !","Cherche encore !"]
[31,{"$nulls":5},31,null,"Cherche encore !","Cherche encore !","Cherche encore !","Cherche encore !"]
[32,{"$nulls":5},32,null,"Cherche encore !","Cherche encore !","Cherche encore !","Cherche encore !"]
[33,{"$nulls":5},33,null,"Cherche encore !","Cherche encore !","Cherche encore !","Cherche encore !"]
[34,{"$nulls":5},34,null,"Cherche encore !","Cherche encore !","Cherche encore !","Cherche encore !"]
[35,{"$nulls":5},35,null,"Cherche encore !","Cherche encore !","Cherche encore !","Cherche encore !"]
[36,{"$nulls":5},36,null,"Cherche encore !","Cherche encore !","Cherche encore !","Cherche encore !"]
[37,{"$nulls":5},37,null,"Cherche encore !","Cherche encore !","Cherche encore !","Cherche encore !"]
[38,{"$nulls":5},38,null,"Cherche encore !","Cherche encore !","Cherche encore !","Cherche encore !"]
[39,{"$nulls":5},39,null,"Cherche encore !","Cherche encore !","Cherche encore !","Cherche encore !"]
[40,{"$nulls":5},40,null,"Cherche encore !","Cherche encore !","Cherche encore !","Cherche encore !"]
[41,{"$nulls":5},41,null,"Cherche encore !","Cherche encore !","Cherche encore !","Cherche encore !"]

{"sheet":"Galerie","index":4,"n_rows":17,"n_cols":40,"rows_kept":17,"hidden":true}
[{"$nulls":26},"Kids","Religions","Ecoliers","Styles","Jeunes","Monde","Philosophes","Races","Stars","Clip"]
[{"$nulls":14},"Prof",{"$nulls":24},1]
[{"$nulls":14},"Choix 1"]
[{"$nulls":14},"Choix 2"]
[{"$nulls":14},"Choix 3"]
[{"$nulls":14},"Choix 4"]
[{"$nulls":26},"Menu"]
[{"$nulls":26},{"$f":"AA1","v":"Kids"}]
[{"$nulls":26},{"$f":"AB1","v":"Religions"}]
[{"$nulls":26},{"$f":"AC1","v":"Ecoliers"}]
[{"$nulls":26},{"$f":"AD1","v":"Styles"}]
[{"$nulls":26},{"$f":"AE1","v":"Jeunes"}]
[{"$nulls":26},{"$f":"AF1","v":"Monde"}]
[{"$nulls":26},{"$f":"AG1","v":"Philosophes"}]
[{"$nulls":26},{"$f":"AH1","v":"Races"}]
[{"$nulls":26},"Stars"]
[{"$nulls":26},"Clip"]